{"text_format":"1","workbook":"xlsx","n_sheets":2,"sheets":["【調査票 10】ファミリーホーム","data"],"not_rendered":{"charts":0,"images":1,"macros":1,"external_links":0,"defined_names":1,"comments":0,"pivot_tables":0},"unopened":[],"bounds":{"document_bytes":16777216,"sheet_cells":100000,"rows_first":2000,"rows_last":500,"rows_between":2000,"halvings":0,"cell_chars":16384,"cell_head_chars":4096},"cells_cut":0,"cells_raw":0,"read":"whole","date_system":"1900"}

{"sheet":"【調査票 10】ファミリーホーム","index":0,"n_rows":126,"n_cols":98,"rows_kept":126,"cut":false,"hidden":false,"merged":[[20,73,20,81],[12,69,12,88],[15,38,15,45],[15,68,15,75],[15,49,15,52],[15,79,15,82],[49,4,51,15],[55,4,61,15],[66,4,66,15],[23,16,24,21],[25,16,25,21],[0,1,0,89],[1,0,2,16],[4,1,4,89],[5,1,5,89],[8,1,10,9],[8,10,10,15],[8,16,10,21],[8,22,10,25],[8,26,10,29],[8,30,10,35],[8,36,10,40],[8,41,10,44],[8,61,10,67],[9,69,9,88],[14,1,67,3],[15,4,15,15],[15,30,15,35],[15,60,15,65],[69,1,81,3],[69,4,81,15],[69,36,73,46],[75,36,81,46],[17,4,21,15],[22,4,30,15],[22,16,22,21],[22,56,27,67],[67,4,67,15],[26,16,27,21],[28,16,30,21],[32,4,46,15],[110,68,110,71],[108,40,108,57],[92,4,96,15],[86,4,88,15],[89,4,91,15],[87,26,87,29],[90,26,90,29],[90,57,90,60],[122,1,122,15],[125,1,127,15],[98,1,108,15],[113,1,115,15],[113,42,113,52],[114,42,114,52],[115,42,115,52],[117,1,119,15],[121,1,121,15],[82,1,96,3],[83,17,83,24],[83,31,83,42],[83,44,83,51],[82,4,84,15],[85,4,85,15],[90,17,90,24],[90,48,90,55],[90,82,90,85],[89,35,91,46],[89,66,91,73],[42,43,42,58],[62,73,62,79],[83,78,83,81],[83,58,83,69]]}
[null,"令和４年度児童養護施設入所児童等調査"]
[]
[]
[]
[null,"小規模住居型児童養育事業（ファミリーホーム）委託児童票 "]
[null,"（令和５年２月１日現在）"]
[null,"　　　　　　　　　　　　　　　　　　　　　　　　　　　　　　　　　　　　　　　"]
[]
[null,"都道府県\n指定都市\n中核市\n児童相談所設置市\n（番号）",null,null,null,null,null,null,null,null,null,null,null,null,null,null,"事業所\n番号",null,null,null,null,null,null,null,null,null,"児童\n\n番号",null,null,null,null,null,null,null,null,null,"調査票\n\n種別",null,null,null,null,"１０",null,null,null,null,null,null,null,null,null,null,null,null,null,null,null,null,null,null,null,"都道府県\n指定都市\n中 核 市\n児童相談所設置市\n（名称）"]
[null,null,null,null,null,null,null,null,null,null,null,null,null,null,null,null,null,null,null,null,null,null,null,null,null,null,null,null,null,null,null,null,null,null,null,null,null,null,null,null,null,null,null,null,null,null,null,null,null,null,null,null,null,null,null,null,null,null,null,null,null,null,null,null,null,null,null,null,null,""]
[]
[]
[null,null,null,null,null,null,null,null,null,null,null,null,null,null,null,null,null,null,null,null,null,null,null,null,null,null,null,null,null,null,null,null,null,null,null,null,null,null,null,null,null,null,null,null,null,null,null,null,null,null,null,null,null,null,null,null,null,null,null,null,null,"ﾌｧﾐﾘｰﾎｰﾑ名称",null,null,null,null,null,null,null,""]
[]
[null,"児童の現在の状況",null,null,null,null,null,null,null,null,null,null,null,null,null,null,null,null,null,null,null,null,null,null,null,null,null,null,null,null,null,null,null,null,null,null,null,null,null,null,null,null,null,null,null,null,null,null,null,null,null,null,null,null,null,null,null,null,null,null,null,null,null,null,null,null,null,null,null,null,null,null,null,null,null,null,null,null,null,null,null,null,null,null,null,null,null,null,null,null,null,null,null,null,null,null,"出生年月",{"$f":"AM16&RIGHT(100+ AX16,2)","v":"00"}]
[null,null,null,null,"(1)\n性別",null,null,null,null,null,null,null,null,null,null,null,null,null,"0",null,null,null,null,null,null,null,null,null,null,null,"(2)\n出生年月",null,null,null,null,null,null,"西暦",null,null,null,null,null,null,null,null,"年",null,null,null,null,null,null,"月",null,null,null,null,null,null,"(3)\n委託年月",null,null,null,null,null,null,"西暦",null,null,null,null,null,null,null,null,"年",null,null,null,null,null,null,"月",null,null,null,null,null,null,null,null,null,null,null,null,"委託年月",{"$f":"BQ16&RIGHT(100+ CB16,2)","v":"00"}]
[]
[null,null,null,null,"(4)\n委託経路"]
[]
[]
[null,null,null,null,null,null,null,null,null,null,null,null,null,null,null,null,null,null,null,null,null,null,null,null,null,null,null,null,null,null,null,null,null,null,null,null,null,null,null,null,null,null,null,null,null,null,null,null,null,null,null,null,null,null,null,null,null,null,null,null,null,null,null,null,null,null,null,null,null,null,null,null,null,null,null,null,null,null,null,null,null,null,")"]
[]
[null,null,null,null,"(5)\n就学及び\n就職状況",null,null,null,null,null,null,null,null,null,null,null,"就学前",null,null,null,null,null,null,null,null,null,null,null,null,null,null,null,null,null,null,null,null,null,null,null,null,null,null,null,null,null,null,null,null,null,null,null,null,null,null,null,"(5) 就学及び就職状況の「04 小学１年」～「14 私立高校」の補問"]
[null,null,null,null,null,null,null,null,null,null,null,null,null,null,null,null,"小学校"]
[]
[null,null,null,null,null,null,null,null,null,null,null,null,null,null,null,null,"中学校"]
[null,null,null,null,null,null,null,null,null,null,null,null,null,null,null,null,"中学卒"]
[]
[null,null,null,null,null,null,null,null,null,null,null,null,null,null,null,null,"高校卒"]
[]
[]
[]
[null,null,null,null,"(6)\n心身の状況\n\n(複数回答可)",null,null,null,null,null,null,null,null,null,null,null,null,null,false]
[]
[null,null,null,null,null,null,null,null,null,null,null,null,null,null,null,null,null,null,false,null,null,null,null,null,null,null,null,null,null,null,null,null,null,null,null,false,null,null,null,null,null,null,null,null,null,null,null,null,null,null,null,false,null,null,null,null,null,null,null,null,null,null,null,null,null,null,false]
[]
[null,null,null,null,null,null,null,null,null,null,null,null,null,null,null,null,null,null,false,null,null,null,null,null,null,null,null,null,null,null,null,null,null,null,null,false,null,null,null,null,null,null,null,null,null,null,null,null,null,null,null,false,null,null,null,null,null,null,null,null,null,null,null,null,null,null,false]
[]
[null,null,null,null,null,null,null,null,null,null,null,null,null,null,null,null,null,null,false,null,null,null,null,null,null,null,null,null,null,null,null,null,null,null,null,false,null,null,null,null,null,null,null,null,null,null,null,null,null,null,null,null,null,null,null,null,false]
[]
[null,null,null,null,null,null,null,null,null,null,null,null,null,null,null,null,null,null,false,null,null,null,null,null,null,null,null,null,null,null,null,null,null,null,null,null,null,null,null,null,null,null,null,null,false,null,null,null,null,null,null,null,null,false,null,null,null,null,null,null,null,null,null,null,null,null,false]
[]
[null,null,null,null,null,null,null,null,null,null,null,null,null,null,null,null,null,null,false,null,null,null,null,null,null,null,null,null,null,null,null,null,null,null,false,null,null,null,null,null,null,null,null,null,null,null,null,null,null,null,null,null,null,null,null,null,null,null,null,")"]
[]
[null,null,null,null,null,null,null,null,null,null,null,null,null,null,null,null,null,null,false]
[]
[null,null,null,null,null,null,null,null,null,null,null,null,null,null,null,null,null,null,false]
[]
[]
[null,null,null,null,"(7)\n罹病傾向\n(複数回答可)",null,null,null,null,null,null,null,null,null,null,null,null,null,false,null,null,null,null,null,null,null,null,null,null,null,null,null,null,null,false,null,null,null,null,null,null,null,null,null,null,null,null,null,null,null,null,false,null,null,null,null,null,null,null,null,null,null,null,null,false]
[]
[null,null,null,null,null,null,null,null,null,null,null,null,null,null,null,null,null,null,false,null,null,null,null,null,null,null,null,null,null,null,null,null,null,null,false,null,null,null,null,null,null,null,null,null,null,null,null,null,null,null,null,false]
[]
[]
[null,null,null,null,null,null,null,null,null,null,null,null,null,null,null,null,null,null,false,null,null,null,null,null,null,null,null,null,null,null,null,null,null,null,null,false,null,null,null,null,null,null,null,null,null,null,null,null,null,null,null,false,null,null,null,null,null,null,null,null,null,null,null,null,null,null,null,null,false]
[null,null,null,null,"(8)\n特に支援上\n留意している点\n\n(複数回答可)"]
[null,null,null,null,null,null,null,null,null,null,null,null,null,null,null,null,null,null,false,null,null,null,null,null,null,null,null,null,null,null,null,null,null,null,null,false,null,null,null,null,null,null,null,null,null,null,null,null,null,null,null,false,null,null,null,null,null,null,null,null,null,null,null,null,null,null,null,null,false]
[]
[null,null,null,null,null,null,null,null,null,null,null,null,null,null,null,null,null,null,false,null,null,null,null,null,null,null,null,null,null,null,null,null,null,null,null,false,null,null,null,null,null,null,null,null,null,null,null,null,null,null,null,false,null,null,null,null,null,null,null,null,null,null,null,null,null,null,null,null,false]
[]
[null,null,null,null,null,null,null,null,null,null,null,null,null,null,null,null,null,null,false,null,null,null,null,null,null,null,null,null,null,null,null,null,null,null,null,false,null,null,null,null,null,null,null,null,null,null,null,null,null,null,null,false,null,null,null,null,null,null,null,null,null,null,null,null,null,null,null,null,false]
[]
[null,null,null,null,null,null,null,null,null,null,null,null,null,null,null,null,null,null,false,null,null,null,null,null,null,null,null,null,null,null,null,null,null,null,null,false,null,null,null,null,null,null,null,null,null,null,null,null,null,null,null,false,null,null,null,null,null,null,null,null,null,null,null,null,null,null,null,null,false,null,null,null,null,null,null,null,null,null,null,null,")"]
[]
[null,null,null,null,null,null,null,null,null,null,null,null,null,null,null,null,null,null,false]
[]
[null,null,null,null,"(9)\n学業の状況"]
[null,null,null,null,"(10)\n通学状況"]
[]
[null,"委託時の家庭の状況",null,null,"(11)\n委託される\n直前の家庭の\n保護者の状況",null,null,null,null,null,null,null,null,null,null,null,null,null,null,null,null,null,null,null,null,null,null,null,null,null,null,null,null,null,null,null,"(11)の両親又は父母のどちらかありの補問"]
[]
[]
[]
[]
[]
[null,null,null,null,null,null,null,null,null,null,null,null,null,null,null,null,null,null,null,null,null,null,null,null,null,null,null,null,null,null,null,null,null,null,null,null,"(11)の両親ともいない又は不明の補問"]
[]
[]
[]
[]
[]
[]
[null,"ファミリーホームの現在の状況",null,null,"(12)\n事業者の種類"]
[null,null,null,null,null,null,null,null,null,null,null,null,null,null,null,null,null,null,null,null,null,null,null,null,null,null,null,null,null,null,null,"(12)の補問１\n養育者の人事異動",null,null,null,null,null,null,null,null,null,null,null,null,null,null,null,null,null,null,null,null,null,null,null,null,null,null,"(12)の補問２\n平均異動周期",null,null,null,null,null,null,null,null,null,null,null,null,null,null,null,null,null,null,null,null,null,null,null,"年"]
[null,null,null,null,null,null,null,null,null,null,null,null,null,null,null,null,null,null,""]
[null,null,null,null,"(13)\n養育者の里親登録の有無"]
[null,null,null,null,"(14)\n委託児童数"]
[null,null,null,null,null,null,null,null,null,null,null,null,null,null,null,null,null,null,null,null,null,null,null,null,null,null,null,null,null,null,"人"]
[]
[null,null,null,null,"(15)\n養育者（１人目）の性別及び年齢",null,null,null,null,null,null,null,null,null,null,null,null,null,null,null,null,null,null,null,null,null,null,null,null,null,null,null,null,null,null,"(16)\n養育者（２人目）の性別及び年齢",null,null,null,null,null,null,null,null,null,null,null,null,null,null,null,null,null,null,null,null,null,null,null,null,null,null,null,null,null,null,"(17)\n補助者の人数"]
[null,null,null,null,null,null,null,null,null,null,null,null,null,null,null,null,null,"",null,null,null,null,null,null,null,null,null,null,null,null,"歳",null,null,null,null,null,null,null,null,null,null,null,null,null,null,null,null,null,null,null,null,null,null,null,null,null,null,null,null,null,null,"歳","",null,null,null,null,null,null,null,null,null,null,null,null,null,null,null,null,null,null,null,null,null,null,null,"人"]
[]
[null,null,null,null,"(18)\n住宅所有状況"]
[null,null,null,null,null,null,null,null,null,null,null,null,null,null,null,null,null,"自家　( ",null,null,null,null,null,null,null,null,null,null,null,null,null,null,null,null,null,null,null,null,")"]
[]
[null,null,null,null,null,null,null,null,null,null,null,null,null,null,null,null,"　","借家　( ",null,null,null,null,null,null,null,null,null,null,null,null,null,null,null,null,null,null,null,null,")"]
[]
[]
[null,"(19)\n養護問題発生理由\n(複数回答可)",null,null,null,null,null,null,null,null,null,null,null,null,null,null,null,null,false,null,null,null,null,null,null,null,null,null,null,null,null,null,null,null,false,null,null,null,null,null,null,null,null,null,null,null,null,null,false,null,null,null,null,null,null,null,null,null,null,null,null,null,null,null,false,null,null,null,null,null,null,null,null,null,null,null,null,null,null,null,false]
[]
[null,null,null,null,null,null,null,null,null,null,null,null,null,null,null,null,null,null,false,null,null,null,null,null,null,null,null,null,null,null,null,null,null,null,false,null,null,null,null,null,null,null,null,null,null,null,null,null,false,null,null,null,null,null,null,null,null,null,null,null,null,null,null,null,false,null,null,null,null,null,null,null,null,null,null,null,null,null,null,null,false]
[]
[null,null,null,null,null,null,null,null,null,null,null,null,null,null,null,null,null,null,false,null,null,null,null,null,null,null,null,null,null,null,null,null,null,null,false,null,null,null,null,null,null,null,null,null,null,null,null,null,false,null,null,null,null,null,null,null,null,null,null,null,null,null,null,null,false,null,null,null,null,null,null,null,null,null,null,null,null,null,null,null,false]
[]
[null,null,null,null,null,null,null,null,null,null,null,null,null,null,null,null,null,null,false,null,null,null,null,null,null,null,null,null,null,null,null,null,null,null,false,null,null,null,null,null,null,null,null,null,null,null,null,null,false,null,null,null,null,null,null,null,null,null,null,null,null,null,null,null,false,null,null,null,null,null,null,null,null,null,null,null,null,null,null,null,false]
[]
[null,null,null,null,null,null,null,null,null,null,null,null,null,null,null,null,null,null,false,null,null,null,null,null,null,null,null,null,null,null,null,null,null,null,false,null,null,null,null,null,null,null,null,null,null,null,null,null,false,null,null,null,null,null,null,null,null,null,null,null,null,null,null,null,false]
[]
[null,null,null,null,null,null,null,null,null,null,null,null,null,null,null,null,null,null,false,null,null,null,null,null,null,null,null,null,null,null,null,null,null,null,false,null,null,null,null,null,null,null,null,null,null,null,null,null,null,null,null,null,null,null,null,null,null,null,")"]
[]
[null,null,null,null,null,null,null,null,null,null,null,null,null,null,null,null,null,null,null,null,null,null,null,null,null,null,null,null,null,null,null,null,null,null,null,null,null,null,null,null,null,null,null,null,null,null,null,"選択したもののうち、主な理由１つ"]
[]
[]
[null,"(20)\n被虐待経験の状況",null,null,null,null,null,null,null,null,null,null,null,null,null,null,null,null,null,null,null,null,null,null,null,null,null,null,null,null,null,null,null,null,null,null,null,null,null,null,null,null,"(20)の補問",null,null,null,null,null,null,null,null,null,null,null,null,null,null,null,null,null,false,null,null,null,null,null,null,null,null,null,null,false]
[null,null,null,null,null,null,null,null,null,null,null,null,null,null,null,null,null,null,null,null,null,null,null,null,null,null,null,null,null,null,null,null,null,null,null,null,null,null,null,null,null,null,"　虐待の種類"]
[null,null,null,null,null,null,null,null,null,null,null,null,null,null,null,null,null,null,null,null,null,null,null,null,null,null,null,null,null,null,null,null,null,null,null,null,null,null,null,null,null,null,"（複数回答可）",null,null,null,null,null,null,null,null,null,null,null,null,null,null,null,null,null,false,null,null,null,null,null,null,null,null,null,null,false]
[]
[null,"(21)\n現在の家族との関係"]
[null,null,null,null,null,null,null,null,null,null,null,null,null,null,null,null,null,"交流あり　（  ",null,null,null,null,null,null,null,null,null,null,null,null,null,null,null,null,null,null,null,null,null,null,null,null,null,null,null,null,null,null,null,null,null,null,null,null,null,null,")"]
[]
[]
[null,"(21)の補問"]
[null,"家族との交流の頻度"]
[]
[]
[null,"(22)\n児童の今後の見通し"]

{"sheet":"data","index":1,"n_rows":84,"n_cols":118,"rows_kept":84,"cut":false,"hidden":true,"merged":[[2,117,3,117],[2,74,3,74],[2,75,3,75],[2,76,2,77],[2,78,2,79],[2,80,3,80],[2,81,3,81],[2,82,2,109],[2,110,3,110],[2,111,2,114],[2,115,3,115],[2,116,3,116],[2,71,3,71],[2,13,3,13],[2,14,3,14],[2,15,3,15],[2,16,2,36],[2,37,2,43],[2,44,2,65],[2,66,3,66],[2,67,3,67],[2,68,3,68],[2,69,3,69],[2,70,3,70],[1,78,1,79],[1,82,1,109],[1,110,1,114],[1,115,1,116],[2,1,3,1],[2,2,3,2],[2,3,3,3],[2,4,3,4],[2,5,3,5],[2,6,3,6],[1,16,1,36],[1,37,1,43],[1,44,1,65],[1,68,1,70],[1,71,1,73],[1,76,1,77],[1,0,3,0],[1,1,1,6],[1,8,1,9],[1,10,1,11],[1,12,1,13],[1,14,1,15],[2,7,3,7],[2,8,2,9],[2,10,2,11],[2,12,3,12]]}
[]
["項目","KEY番号",null,null,null,null,null,"質問１","質問２",null,"質問３",null,"質問４",null,"質問５",null,"質問６",null,null,null,null,null,null,null,null,null,null,null,null,null,null,null,null,null,null,null,null,"質問７",null,null,null,null,null,null,"質問８",null,null,null,null,null,null,null,null,null,null,null,null,null,null,null,null,null,null,null,null,null,"質問９","質問10","質問11",null,null,"質問12",null,null,"質問１３","質問１４","質問１５",null,"質問１６",null,"質問１７","質問１8","質問11",null,null,null,null,null,null,null,null,null,null,null,null,null,null,null,null,null,null,null,null,null,null,null,null,null,null,null,"質問12",null,null,null,null,"質問13",null,"質問14"]
[null,"都道府県・指定都市・中核市・児童相談所設置市番号","施設番号","児童番号","調査票種別","自治体名","施設名","性別","出生年月",null,"入所年月",null,"入所経路","具体的に","就学及び就職状況","補問","心身の状況",null,null,null,null,null,null,null,null,null,null,null,null,null,null,null,null,null,null,null,null,"罹病傾向",null,null,null,null,null,null,"特に支援上留意している点",null,null,null,null,null,null,null,null,null,null,null,null,null,null,null,null,null,null,null,null,null,"学業の状況","通学状況","保護者の状況","補問","補問","事業者の種類","補問１","補問２","養育者の里親登録の有無","委託児童数","養育者１人目",null,"養育者２人目",null,"補助者の人数","住宅所有状況","養護問題発生理由",null,null,null,null,null,null,null,null,null,null,null,null,null,null,null,null,null,null,null,null,null,null,null,null,null,null,null,"被虐待経験の状況","補問",null,null,null,"現在の家族との関係","補問","児童の今後の見通し"]
[null,null,null,null,null,null,null,null,"年","月","年","月",null,null,null,null,"01","02","03","04","05","06","07","08","09","10","11","12","13","14","15","16","17","18","19","20","その他障害",1,2,3,4,5,6,7,"01","02","03","04","05","06","07","08","09","10","11","12","13","14","15","16","17","18","19","20","21","その他フリーワード",null,null,null,null,null,null,"養育者の人事異動","平均移動周期",null,null,"性別","年齢","性別","年齢",null,null,"01","02","03","04","05","06","07","08","09","10","11","12","13","14","15","16","17","18","19","20","21","22","23","24","25","26","その他フリーワード","補問",null,1,2,3,4]
["回答",{"$f":"'【調査票 10】ファミリーホーム'!$K$9","v":0},{"$f":"'【調査票 10】ファミリーホーム'!$W$9","v":0},{"$f":"'【調査票 10】ファミリーホーム'!$AE$9","v":0},{"$f":"'【調査票 10】ファミリーホーム'!$AP$9","v":"１０"},{"$f":"'【調査票 10】ファミリーホーム'!$BR$10","v":""},{"$f":"'【調査票 10】ファミリーホーム'!$BR$13","v":""},{"$f":"'【調査票 10】ファミリーホーム'!$S$16","v":"0"},{"$f":"'【調査票 10】ファミリーホーム'!$AM$16","v":0},{"$f":"'【調査票 10】ファミリーホーム'!$AX$16","v":0},{"$f":"'【調査票 10】ファミリーホーム'!$BQ$16","v":0},{"$f":"'【調査票 10】ファミリーホーム'!$CB$16","v":0},{"$f":"'【調査票 10】ファミリーホーム'!$U$19","v":0},{"$f":"'【調査票 10】ファミリーホーム'!$BV$21","v":0},{"$f":"'【調査票 10】ファミリーホーム'!$Y$23","v":0},{"$f":"'【調査票 10】ファミリーホーム'!$BR$23","v":0},{"$f":"IF('【調査票 10】ファミリーホーム'!$S$33=FALSE,0,1)","v":0},{"$f":"IF('【調査票 10】ファミリーホーム'!$S$35=FALSE,0,1)","v":0},{"$f":"IF('【調査票 10】ファミリーホーム'!$AJ$35=FALSE,0,1)","v":0},{"$f":"IF('【調査票 10】ファミリーホーム'!$AZ$35=FALSE,0,1)","v":0},{"$f":"IF('【調査票 10】ファミリーホーム'!$BO$35=FALSE,0,1)","v":0},{"$f":"IF('【調査票 10】ファミリーホーム'!$S$37=FALSE,0,1)","v":0},{"$f":"IF('【調査票 10】ファミリーホーム'!$AJ$37=FALSE,0,1)","v":0},{"$f":"IF('【調査票 10】ファミリーホーム'!$AZ$37=FALSE,0,1)","v":0},{"$f":"IF('【調査票 10】ファミリーホーム'!$BO$37=FALSE,0,1)","v":0},{"$f":"IF('【調査票 10】ファミリーホーム'!$S$39=FALSE,0,1)","v":0},{"$f":"IF('【調査票 10】ファミリーホーム'!$AJ$39=FALSE,0,1)","v":0},{"$f":"IF('【調査票 10】ファミリーホーム'!$BE$39=FALSE,0,1)","v":0},{"$f":"IF('【調査票 10】ファミリーホーム'!$S$41=FALSE,0,1)","v":0},{"$f":"IF('【調査票 10】ファミリーホーム'!$AS$41=FALSE,0,1)","v":0},{"$f":"IF('【調査票 10】ファミリーホーム'!$BB$41=FALSE,0,1)","v":0},{"$f":"IF('【調査票 10】ファミリーホーム'!$BO$41=FALSE,0,1)","v":0},{"$f":"IF('【調査票 10】ファミリーホーム'!$S$43=FALSE,0,1)","v":0},{"$f":"IF('【調査票 10】ファミリーホーム'!$AI$43=FALSE,0,1)","v":0},{"$f":"IF('【調査票 10】ファミリーホーム'!$S$45=FALSE,0,1)","v":0},{"$f":"IF('【調査票 10】ファミリーホーム'!$S$47=FALSE,0,1)","v":0},{"$f":"'【調査票 10】ファミリーホーム'!$AR$43","v":0},{"$f":"IF('【調査票 10】ファミリーホーム'!$S$50=FALSE,0,1)","v":0},{"$f":"IF('【調査票 10】ファミリーホーム'!$AI$50=FALSE,0,1)","v":0},{"$f":"IF('【調査票 10】ファミリーホーム'!$AZ$50=FALSE,0,1)","v":0},{"$f":"IF('【調査票 10】ファミリーホーム'!$BM$50=FALSE,0,1)","v":0},{"$f":"IF('【調査票 10】ファミリーホーム'!$S$52=FALSE,0,1)","v":0},{"$f":"IF('【調査票 10】ファミリーホーム'!$AI$52=FALSE,0,1)","v":0},{"$f":"IF('【調査票 10】ファミリーホーム'!$AZ$52=FALSE,0,1)","v":0},{"$f":"IF('【調査票 10】ファミリーホーム'!$S$55=FALSE,0,1)","v":0},{"$f":"IF('【調査票 10】ファミリーホーム'!$AJ$55=FALSE,0,1)","v":0},{"$f":"IF('【調査票 10】ファミリーホーム'!$AZ$55=FALSE,0,1)","v":0},{"$f":"IF('【調査票 10】ファミリーホーム'!$BQ$55=FALSE,0,1)","v":0},{"$f":"IF('【調査票 10】ファミリーホーム'!$S$57=FALSE,0,1)","v":0},{"$f":"IF('【調査票 10】ファミリーホーム'!$AJ$57=FALSE,0,1)","v":0},{"$f":"IF('【調査票 10】ファミリーホーム'!$AZ$57=FALSE,0,1)","v":0},{"$f":"IF('【調査票 10】ファミリーホーム'!$BQ$57=FALSE,0,1)","v":0},{"$f":"IF('【調査票 10】ファミリーホーム'!$S$59=FALSE,0,1)","v":0},{"$f":"IF('【調査票 10】ファミリーホーム'!$AJ$59=FALSE,0,1)","v":0},{"$f":"IF('【調査票 10】ファミリーホーム'!$AZ$59=FALSE,0,1)","v":0},{"$f":"IF('【調査票 10】ファミリーホーム'!$BQ$59=FALSE,0,1)","v":0},{"$f":"IF('【調査票 10】ファミリーホーム'!$S$61=FALSE,0,1)","v":0},{"$f":"IF('【調査票 10】ファミリーホーム'!$AJ$61=FALSE,0,1)","v":0},{"$f":"IF('【調査票 10】ファミリーホーム'!$AZ$61=FALSE,0,1)","v":0},{"$f":"IF('【調査票 10】ファミリーホーム'!$BQ$61=FALSE,0,1)","v":0},{"$f":"IF('【調査票 10】ファミリーホーム'!$S$63=FALSE,0,1)","v":0},{"$f":"IF('【調査票 10】ファミリーホーム'!$AJ$63=FALSE,0,1)","v":0},{"$f":"IF('【調査票 10】ファミリーホーム'!$AZ$63=FALSE,0,1)","v":0},{"$f":"IF('【調査票 10】ファミリーホーム'!$BQ$63=FALSE,0,1)","v":0},{"$f":"IF('【調査票 10】ファミリーホーム'!$S$65=FALSE,0,1)","v":0},{"$f":"'【調査票 10】ファミリーホーム'!$BV$63","v":0},{"$f":"'【調査票 10】ファミリーホーム'!$T$67","v":0},{"$f":"'【調査票 10】ファミリーホーム'!$T$68","v":0},{"$f":"'【調査票 10】ファミリーホーム'!$S$71","v":0},{"$f":"'【調査票 10】ファミリーホーム'!$AX$70","v":0},{"$f":"'【調査票 10】ファミリーホーム'!$AX$77","v":0},{"$f":"'【調査票 10】ファミリーホーム'!$R$84","v":0},{"$f":"'【調査票 10】ファミリーホーム'!$AS$84","v":0},{"$f":"'【調査票 10】ファミリーホーム'!$CA$84","v":0},{"$f":"'【調査票 10】ファミリーホーム'!$V$86","v":0},{"$f":"'【調査票 10】ファミリーホーム'!$AA$88","v":0},{"$f":"'【調査票 10】ファミリーホーム'!$R$91","v":""},{"$f":"'【調査票 10】ファミリーホーム'!$AA$91","v":0},{"$f":"'【調査票 10】ファミリーホーム'!$AW$91","v":0},{"$f":"'【調査票 10】ファミリーホーム'!$BF$91","v":0},{"$f":"'【調査票 10】ファミリーホーム'!$CE$91","v":0},{"$f":"'【調査票 10】ファミリーホーム'!$W$94","v":0},{"$f":"IF('【調査票 10】ファミリーホーム'!$S$99=FALSE,0,1)","v":0},{"$f":"IF('【調査票 10】ファミリーホーム'!$AI$99=FALSE,0,1)","v":0},{"$f":"IF('【調査票 10】ファミリーホーム'!$AW$99=FALSE,0,1)","v":0},{"$f":"IF('【調査票 10】ファミリーホーム'!$BM$99=FALSE,0,1)","v":0},{"$f":"IF('【調査票 10】ファミリーホーム'!$CC$99=FALSE,0,1)","v":0},{"$f":"IF('【調査票 10】ファミリーホーム'!$S$101=FALSE,0,1)","v":0},{"$f":"IF('【調査票 10】ファミリーホーム'!$AI$101=FALSE,0,1)","v":0},{"$f":"IF('【調査票 10】ファミリーホーム'!$AW$101=FALSE,0,1)","v":0},{"$f":"IF('【調査票 10】ファミリーホーム'!$BM$101=FALSE,0,1)","v":0},{"$f":"IF('【調査票 10】ファミリーホーム'!$CC$101=FALSE,0,1)","v":0},{"$f":"IF('【調査票 10】ファミリーホーム'!$S$103=FALSE,0,1)","v":0},{"$f":"IF('【調査票 10】ファミリーホーム'!$AI$103=FALSE,0,1)","v":0},{"$f":"IF('【調査票 10】ファミリーホーム'!$AW$103=FALSE,0,1)","v":0},{"$f":"IF('【調査票 10】ファミリーホーム'!$BM$103=FALSE,0,1)","v":0},{"$f":"IF('【調査票 10】ファミリーホーム'!$CC$103=FALSE,0,1)","v":0},{"$f":"IF('【調査票 10】ファミリーホーム'!$S$105=FALSE,0,1)","v":0},{"$f":"IF('【調査票 10】ファミリーホーム'!$AI$105=FALSE,0,1)","v":0},{"$f":"IF('【調査票 10】ファミリーホーム'!$AW$105=FALSE,0,1)","v":0},{"$f":"IF('【調査票 10】ファミリーホーム'!$BM$105=FALSE,0,1)","v":0},{"$f":"IF('【調査票 10】ファミリーホーム'!$CC$105=FALSE,0,1)","v":0},{"$f":"IF('【調査票 10】ファミリーホーム'!$S$107=FALSE,0,1)","v":0},{"$f":"IF('【調査票 10】ファミリーホーム'!$AI$107=FALSE,0,1)","v":0},{"$f":"IF('【調査票 10】ファミリーホーム'!$AW$107=FALSE,0,1)","v":0},{"$f":"IF('【調査票 10】ファミリーホーム'!$BM$107=FALSE,0,1)","v":0},{"$f":"IF('【調査票 10】ファミリーホーム'!$S$109=FALSE,0,1)","v":0},{"$f":"IF('【調査票 10】ファミリーホーム'!$AI$109=FALSE,0,1)","v":0},{"$f":"'【調査票 10】ファミリーホーム'!$AO$109","v":0},{"$f":"'【調査票 10】ファミリーホーム'!$BQ$111","v":0},{"$f":"'【調査票 10】ファミリーホーム'!$S$114","v":0},{"$f":"IF('【調査票 10】ファミリーホーム'!$BI$114=FALSE,0,1)","v":0},{"$f":"IF('【調査票 10】ファミリーホーム'!$BT$114=FALSE,0,1)","v":0},{"$f":"IF('【調査票 10】ファミリーホーム'!$BI$116=FALSE,0,1)","v":0},{"$f":"IF('【調査票 10】ファミリーホーム'!$BT$116=FALSE,0,1)","v":0},{"$f":"'【調査票 10】ファミリーホーム'!$Z$119","v":0},{"$f":"'【調査票 10】ファミリーホーム'!$S$122","v":0},{"$f":"'【調査票 10】ファミリーホーム'!$S$126","v":0}]
[]
[]
[]
[]
[]
[]
[]
[]
[]
[]
[]
[]
[]
[]
[]
[]
[]
[]
[]
[]
[]
[]
[]
[]
[]
[]
[]
[]
[]
[]
[]
[]
[]
[]
[]
[]
[]
[]
[]
[]
[]
[]
[]
[]
[]
[]
[]
[]
[]
[]
[]
[]
[]
[]
[]
[]
[]
[]
[]
[]
[]
[]
[]
[]
[]
[]
[]
[]
[]
[]
[]
[]
[]
[]
[]
[]
[]
[]
[null,null,null,null,null,null,null,null,null,null,null,null,null,null,null,null,null,null,null,null,null,null,null,null,null,null,null,null,null,null,null,null,null,null,null,null,null,null,null,null,null,null,null,null,1]